[Event "Runavik Open 2018"]
[Site "Runavik"]
[Date "2018.11.13"]
[Round "2"]
[White "Tummasarson, Flovin M."]
[Black "Apol, Luitjen Akselsson"]
[Result "0-1"]
[ECO "B50"]
[WhiteElo "1378"]
[BlackElo "1735"]
[Annotator "NA RC"]
[PlyCount "72"]
[EventDate "2018.11.12"]
[EventType "swiss"]
[EventCountry "FAI"]
[SourceTitle "playchess.com"]
[Source "ChessBase"]
[SourceQuality "1"]
[TimeControl "40/5400+30:900+30"]

1. e4 {[%emt 0:00:00]} c5 {[%emt 0:00:00]} 2. Nf3 {[%emt 0:00:06]} d6 {[%emt 0:01:32]} 3. c3 {[%emt 0:00:31]} Nf6 {[%emt 0:00:37]} 4. Be2 {[%emt 0:00:33]} g6 {[%emt 0:01:16]} 5. O-O {[%emt 0:00:42]} Bg7 {[%emt 0:00:11]} 6. Re1 {[%emt 0:01:03]} O-O {[%emt 0:01:12]} 7. Bf1 {[%emt 0:00:05]} Nc6 {[%emt 0:00:44]} 8. d4 {[%emt 0:01:02]} cxd4 {[%emt 0:00:25]} 9. cxd4 {[%emt 0:00:07]} Bg4 {[%emt 0:01:48]} 10. d5 {[%emt 0:03:59]} Ne5 {[%emt 0:01:34]} 11. Nbd2 {[%emt 0:00:31]} Rc8 {[%emt 0:06:20]} 12. h3 {[%emt 0:00:46]} Bxf3 {[%emt 0:00:31]} 13. Nxf3 {[%emt 0:00:12]} Nxf3+ {[%emt 0:01:11]} 14. Qxf3 {[%emt 0:00:08]} Nd7 {[%emt 0:00:35]} 15. Be3 {[%emt 0:05:00]} Bxb2 {[%emt 0:03:40]} 16. Rab1 {[%emt 0:00:47]} Bc3 {[%emt 0:09:17]} 17. Rec1 {[%emt 0:00:08]} Ba5 {[%emt 0:16:22]} 18. Rxb7 {[%emt 0:05:18]} Rxc1 {[%emt 0:00:10]} 19. Bxc1 {[%emt 0:00:08]} Bb6 {[%emt 0:00:05]} 20. Qc3 {[%emt 0:00:46]} Nc5 {[%emt 0:01:04]} 21. Bh6 {[%emt 0:01:41]} f6 {[%emt 0:00:24]} 22. Rxb6 {[%emt 0:02:05]} Qxb6 {[%emt 0:00:22]} 23. Bxf8 {[%emt 0:00:30]} Kxf8 {[%emt 0:00:04]} 24. Qe3 {[%emt 0:02:25]} Qb1 {[%emt 0:01:12]} 25. f3 {[%emt 0:08:06]} Qxa2 {[%emt 0:01:10]} 26. Kh2 {[%emt 0:02:22]} a5 {[%emt 0:06:21]} 27. Qc3 {[%emt 0:04:02]} Qb1 {[%emt 0:03:23]} 28. Bc4 {[%emt 0:04:37]} Qb4 {[%emt 0:00:09]} 29. Qa1 {[%emt 0:13:29]} Qxc4 {[%emt 0:01:25]} 30. Qxa5 {[%emt 0:00:17]} Kf7 {[%emt 0:03:28]} 31. Qd8 {[%emt 0:02:04]} Qc1 {[%emt 0:02:15]} 32. h4 {[%emt 0:07:04]} Qf4+ {[%emt 0:04:22]} 33. g3 {[%emt 0:01:52]} Qxf3 {[%emt 0:00:16]} 34. Qh8 {[%emt 0:00:49]} Qh5 {[%emt 0:05:36]} 35. Qc8 {[%emt 0:01:12]} f5 {[%emt 0:00:29]} 36. e5 {[%emt 0:00:41]} Qe2+ 0-1

[Event "Runavik Open 2018"]
[Site "Runavik"]
[Date "2018.11.14"]
[Round "3"]
[White "Fjallheim, Leif Reinert"]
[Black "Olsen, Kaj"]
[Result "1/2-1/2"]
[ECO "C24"]
[WhiteElo "1919"]
[BlackElo "1718"]
[Annotator "NA RC"]
[PlyCount "124"]
[EventDate "2018.11.12"]
[EventType "swiss"]
[EventCountry "FAI"]
[SourceTitle "playchess.com"]
[Source "ChessBase"]
[SourceQuality "1"]
[TimeControl "40/5400+30:900+30"]

1. e4 {[%emt 0:00:00]} e5 {[%emt 0:00:26]} 2. Bc4 {[%emt 0:00:45]} Nf6 {[%emt 0:00:58]} 3. d3 {[%emt 0:00:37]} Be7 {[%emt 0:03:37]} 4. Nf3 {[%emt 0:01:31]} d6 {[%emt 0:00:18]} 5. c3 {[%emt 0:02:38]} c5 {[%emt 0:01:28] C41: Philidor Defence} 6. Nbd2 {[%emt 0:03:03]} Nc6 {[%emt 0:00:50]} 7. Nf1 {[%emt 0:03:35]} a6 {[%emt 0:04:36]} 8. a4 $146 {[%emt 0:02:29]} ({Predecessor:} 8. Ng3 Na5 9. O-O b5 10. Bb3 Nxb3 11. axb3 Bb7 12. Nf5 O-O {1-0 (55) Kislinsky,A (2551)-Sanak,F (1940) Stare Mesto 2012}) 8... O-O {[%emt 0:03:02]} 9. Ne3 {[%emt 0:02:46]} Be6 {[%emt 0:01:09]} 10. Bb3 {[%emt 0:09:48]} h6 {[%emt 0:07:21]} 11. Bc2 {[%emt 0:04:32]} d5 {[%emt 0:02:26]} 12. O-O {[%emt 0:03:01]} dxe4 {[%emt 0:05:51]} 13. dxe4 {[%emt 0:00:09]} Qxd1 {[%emt 0:00:48]} 14. Rxd1 {[%emt 0:00:10]} Rfd8 {[%emt 0:01:14]} 15. Re1 {[%emt 0:04:29]} g6 {[%emt 0:06:19]} 16. b3 {[%emt 0:03:24]} b5 {[%emt 0:03:15]} 17. Nd5 {[%emt 0:07:44]} Nxd5 {[%emt 0:03:46]} 18. exd5 {[%emt 0:00:11]} Bxd5 {[%emt 0:00:32]} 19. axb5 {[%emt 0:02:14]} axb5 {[%emt 0:01:23]} 20. Rxa8 {[%emt 0:04:03]} Rxa8 {[%emt 0:00:48]} 21. Nxe5 {[%emt 0:01:53]} Nxe5 {[%emt 0:02:04]} 22. Rxe5 {[%emt 0:00:19]} Ra1 {[%emt 0:00:18]} 23. Re1 {[%emt 0:03:01]} Bf6 {[%emt 0:04:09]} 24. Rf1 {[%emt 0:24:11]} h5 {[%emt 0:07:32]} 25. Be3 {[%emt 0:02:27]} Rxf1+ {[%emt 0:00:09]} 26. Kxf1 {[%emt 0:00:03]} c4 {[%emt 0:00:11]} 27. bxc4 {[%emt 0:02:19]} Bxc4+ {[%emt 0:00:09]} 28. Ke1 {[%emt 0:00:05]} Bxc3+ {[%emt 0:00:39]} 29. Bd2 {[%emt 0:02:50]} Bxd2+ {[%emt 0:01:45]} 30. Kxd2 {[%emt 0:00:02]} Kg7 {[%emt 0:00:18]} 31. Kc3 {[%emt 0:02:56]} Kf6 {[%emt 0:01:42]} 32. f4 {[%emt 0:02:43]} g5 {[%emt 0:06:48]} 33. fxg5+ {[%emt 0:01:46]} Kxg5 {[%emt 0:00:12]} 34. Bd1 {[%emt 0:00:27]} h4 {[%emt 0:00:50]} 35. Bf3 {[%emt 0:00:56]} Kf4 {[%emt 0:01:02]} 36. Kd4 {[%emt 0:01:10]} h3 {[%emt 0:03:04]} 37. Bc6 {[%emt 0:00:37]} hxg2 {[%emt 0:01:06]} 38. Bxg2 {[%emt 0:00:02]} Kg4 {[%emt 0:00:47]} 39. Ke5 {[%emt 0:04:02]} b4 {[%emt 0:03:17]} 40. Be4 {[%emt 0:00:00]} Kh3 {[%emt 0:00:00]} 41. Kd4 {[%emt 0:03:19]} Be6 {[%emt 0:01:12]} 42. Kc5 {[%emt 0:00:52]} b3 {[%emt 0:00:44]} 43. Kb4 {[%emt 0:03:43]} Kxh2 {[%emt 0:02:05]} 44. Kc3 {[%emt 0:00:19]} Kg3 {[%emt 0:00:11]} 45. Kb2 {[%emt 0:00:14]} Kf4 {[%emt 0:00:10]} 46. Bb1 {[%emt 0:00:06]} Ke5 {[%emt 0:00:30]} 47. Bd3 {[%emt 0:00:16]} f5 {[%emt 0:00:16]} 48. Kc3 {[%emt 0:00:11]} f4 {[%emt 0:00:26]} 49. Bf1 {[%emt 0:00:23]} Ke4 {[%emt 0:00:08]} 50. Bg2+ {[%emt 0:00:44]} f3 {[%emt 0:00:21]} 51. Bf1 {[%emt 0:00:07]} Ke3 {[%emt 0:00:14]} 52. Bb5 {[%emt 0:00:15]} f2 {[%emt 0:00:19]} 53. Bf1 {[%emt 0:00:10]} Kf3 {[%emt 0:00:11]} 54. Kd2 {[%emt 0:01:46]} Kg3 {[%emt 0:01:58]} 55. Kc3 {[%emt 0:01:19]} Kh2 {[%emt 0:00:12]} 56. Kd2 {[%emt 0:00:32]} Kg1 {[%emt 0:00:08]} 57. Bd3 {[%emt 0:00:08]} f1=Q {[%emt 0:00:11]} 58. Bxf1 {[%emt 0:00:07]} Kxf1 {[%emt 0:00:05]} 59. Kc3 {[%emt 0:00:07]} Ke2 {[%emt 0:00:07]} 60. Kb2 {[%emt 0:00:07]} Kd2 {[%emt 0:00:15]} 61. Ka1 {[%emt 0:00:22]} Kc3 {[%emt 0:00:11]} 62. Kb1 {[%emt 0:00:05]} b2 {[%emt 0:00:07]} 1/2-1/2

[Event "Runavik Open 2018"]
[Site "Runavik"]
[Date "2018.11.14"]
[Round "3"]
[White "Berg, Margar M."]
[Black "Nielsen, Jon I Horni"]
[Result "0-1"]
[ECO "D00"]
[WhiteElo "1852"]
[BlackElo "1710"]
[Annotator "NA RC"]
[PlyCount "70"]
[EventDate "2018.11.12"]
[EventType "swiss"]
[EventCountry "FAI"]
[SourceTitle "playchess.com"]
[Source "ChessBase"]
[SourceQuality "1"]
[TimeControl "40/5400+30:900+30"]

1. d4 {[%emt 0:00:00]} d5 {[%emt 0:01:13]} 2. Bg5 {[%emt 0:00:00]} Nf6 {[%emt 0:02:35]} 3. e3 {[%emt 0:00:39]} c6 {[%emt 0:02:31]} 4. Bxf6 {[%emt 0:00:48]} exf6 {[%emt 0:02:04]} 5. Bd3 {[%emt 0:04:43]} Be6 {[%emt 0:05:06]} 6. Nf3 {[%emt 0:00:55]} Nd7 {[%emt 0:03:40]} 7. O-O {[%emt 0:00:29]} g6 {[%emt 0:02:30]} 8. Nc3 {[%emt 0:02:29]} f5 {[%emt 0:04:59]} 9. Ne2 {[%emt 0:01:57]} Bg7 {[%emt 0:01:53]} 10. Nf4 {[%emt 0:02:21]} O-O {[%emt 0:05:50]} 11. h4 {[%emt 0:02:11]} Bf6 {[%emt 0:02:11]} 12. h5 {[%emt 0:06:18]} g5 {[%emt 0:03:43]} 13. Ne2 {[%emt 0:03:27]} g4 {[%emt 0:03:24]} 14. Nd2 {[%emt 0:00:30]} Bh4 {[%emt 0:02:37]} 15. c4 {[%emt 0:00:31]} Nf6 {[%emt 0:04:28]} 16. cxd5 {[%emt 0:00:26]} cxd5 {[%emt 0:01:05]} 17. Nf4 {[%emt 0:01:18]} Bg5 {[%emt 0:02:35]} 18. f3 {[%emt 0:01:42]} Bxf4 {[%emt 0:00:17]} 19. exf4 {[%emt 0:00:12]} g3 {[%emt 0:01:14]} 20. Re1 {[%emt 0:05:07]} Nxh5 {[%emt 0:02:10]} 21. Nf1 {[%emt 0:00:50]} Qh4 {[%emt 0:02:18]} 22. Qd2 {[%emt 0:05:35]} Nxf4 {[%emt 0:06:04]} 23. Re5 {[%emt 0:09:32]} Ng6 {[%emt 0:02:14]} 24. Rxf5 {[%emt 0:06:30]} Qxd4+ {[%emt 0:01:54]} 25. Qe3 {[%emt 0:00:16]} Qxe3+ {[%emt 0:00:39]} 26. Nxe3 {[%emt 0:00:15]} Bxf5 {[%emt 0:00:34]} 27. Nxf5 {[%emt 0:00:21]} Nf4 {[%emt 0:01:43]} 28. Rd1 {[%emt 0:00:25]} Nxd3 {[%emt 0:03:03]} 29. Rxd3 {[%emt 0:01:10]} Rae8 {[%emt 0:00:37]} 30. Nxg3 {[%emt 0:00:12]} Kh8 {[%emt 0:02:40]} 31. Rxd5 {[%emt 0:00:15]} Rg8 {[%emt 0:01:02]} 32. Ne4 {[%emt 0:00:36]} Rc8 {[%emt 0:00:33]} 33. Rd7 {[%emt 0:05:24]} Rc2 {[%emt 0:02:39]} 34. g4 {[%emt 0:00:36]} Rxb2 {[%emt 0:01:07]} 35. Rxf7 {[%emt 0:00:12]} Rc8 {[%emt 0:00:33]} 0-1

[Event "Runavik Open 2018"]
[Site "Runavik"]
[Date "2018.11.14"]
[Round "3"]
[White "Schadd, Jan"]
[Black "Nielsen, Suni I Horni"]
[Result "1-0"]
[ECO "A04"]
[WhiteElo "1842"]
[BlackElo "1563"]
[Annotator "NA RC"]
[PlyCount "69"]
[EventDate "2018.11.12"]
[EventType "swiss"]
[EventCountry "FAI"]
[SourceTitle "playchess.com"]
[Source "ChessBase"]
[SourceQuality "1"]
[TimeControl "40/5400+30:900+30"]

1. Nf3 {[%emt 0:00:00]} Nc6 {[%emt 0:01:12]} 2. d4 {[%emt 0:00:00]} d5 {[%emt 0:01:18]} 3. c4 {[%emt 0:00:46]} e6 {[%emt 0:01:34]} 4. Nc3 {[%emt 0:01:30]} h6 {[%emt 0:01:48]} 5. g3 {[%emt 0:08:19]} Nf6 {[%emt 0:04:15]} 6. Bg2 {[%emt 0:00:31]} Bd6 {[%emt 0:05:10]} 7. O-O {[%emt 0:01:26]} b6 {[%emt 0:02:14]} 8. cxd5 {[%emt 0:15:21]} exd5 {[%emt 0:00:27]} 9. Qa4 {[%emt 0:06:27]} Bd7 {[%emt 0:01:25]} 10. Nb5 {[%emt 0:03:40]} Be7 {[%emt 0:01:58]} 11. Bf4 {[%emt 0:02:41]} Rc8 {[%emt 0:03:06]} 12. Nxa7 {[%emt 0:07:32]} Nxa7 {[%emt 0:00:14]} 13. Qxa7 {[%emt 0:00:09]} Bb5 {[%emt 0:06:24]} 14. Rfc1 {[%emt 0:03:57]} c6 {[%emt 0:03:27]} 15. Qb7 {[%emt 0:02:50]} Nh5 {[%emt 0:03:11]} 16. a4 {[%emt 0:03:05]} Nxf4 {[%emt 0:00:18]} 17. axb5 {[%emt 0:00:12]} Nxe2+ {[%emt 0:00:13]} 18. Kf1 {[%emt 0:00:21]} Nxc1 {[%emt 0:01:20]} 19. Rxc1 {[%emt 0:00:17]} c5 {[%emt 0:01:06]} 20. dxc5 {[%emt 0:00:20]} bxc5 {[%emt 0:01:17]} 21. Ne5 {[%emt 0:02:07]} f6 {[%emt 0:09:56]} 22. Ng6 {[%emt 0:07:06]} Rc7 {[%emt 0:02:42]} 23. Qxd5 {[%emt 0:01:06]} Rd7 {[%emt 0:00:05]} 24. Qh5 {[%emt 0:01:23]} Qb8 {[%emt 0:03:53]} 25. Bc6 {[%emt 0:03:23]} Kd8 {[%emt 0:01:15]} 26. Nxh8 {[%emt 0:01:06]} Rd4 {[%emt 0:00:12]} 27. Qe8+ {[%emt 0:01:23]} Kc7 {[%emt 0:00:13]} 28. Qxb8+ {[%emt 0:00:13]} Kxb8 {[%emt 0:00:27]} 29. Ng6 {[%emt 0:01:07]} Bd6 {[%emt 0:00:02]} 30. Ke2 {[%emt 0:00:47]} Kc7 {[%emt 0:00:46]} 31. f4 {[%emt 0:00:47]} Rb4 {[%emt 0:00:30]} 32. Rc2 {[%emt 0:00:23]} Ra4 {[%emt 0:00:33]} 33. Rd2 {[%emt 0:02:14]} Ra1 {[%emt 0:00:37]} 34. Nh4 {[%emt 0:00:42]} Rh1 {[%emt 0:00:33]} 35. Bxh1 {[%emt 0:00:10]} 1-0

[Event "Runavik Open 2018"]
[Site "Runavik"]
[Date "2018.11.14"]
[Round "3"]
[White "Apol, Luitjen Akselsson"]
[Black "Jacobsen, Heidrikur T."]
[Result "0-1"]
[ECO "B06"]
[WhiteElo "1735"]
[BlackElo "1935"]
[Annotator "NA RC"]
[PlyCount "136"]
[EventDate "2018.11.12"]
[EventType "swiss"]
[EventCountry "FAI"]
[SourceTitle "playchess.com"]
[Source "ChessBase"]
[SourceQuality "1"]
[TimeControl "40/5400+30:900+30"]

1. e4 {[%emt 0:00:00]} d6 {[%emt 0:00:00]} 2. d4 {[%emt 0:00:25]} g6 {[%emt 0:00:00]} 3. Nc3 {[%emt 0:00:37]} Bg7 {[%emt 0:00:00]} 4. Bg5 {[%emt 0:00:58]} c6 {[%emt 0:03:24]} 5. Qd2 {[%emt 0:02:26]} h6 {[%emt 0:02:27]} 6. Bf4 {[%emt 0:00:19]} Nf6 {[%emt 0:06:15]} 7. O-O-O {[%emt 0:01:39] B07: Pirc Defence: Miscellaneous Systems} b5 {[%emt 0:03:47] LiveBook: 5 Games} 8. e5 {[%emt 0:09:37]} b4 {[%emt 0:10:24]} 9. Nb1 $146 {[%emt 0:03:37]} ({Predecessor:} 9. exf6 bxc3 10. Qxc3 Bxf6 11. Nf3 Bg7 12. h4 Be6 13. Bc4 Bxc4 14. Qxc4 O-O {1-0 (50) Vallejo Pons,F (2684)-Onischuk,V (2612) Berlin 2015}) 9... dxe5 {[%emt 0:01:39]} 10. Bxe5 {[%emt 0:13:59]} a5 {[%emt 0:01:52]} 11. Bc4 {[%emt 0:04:39]} Nbd7 {[%emt 0:04:16]} 12. c3 {[%emt 0:04:29]} Nxe5 {[%emt 0:10:47]} 13. dxe5 {[%emt 0:00:17]} Qxd2+ {[%emt 0:00:09]} 14. Rxd2 {[%emt 0:00:07]} Ne4 {[%emt 0:01:15]} 15. Re2 {[%emt 0:01:04]} Nc5 {[%emt 0:00:04]} 16. Nf3 {[%emt 0:06:34]} Bg4 {[%emt 0:09:45]} 17. cxb4 {[%emt 0:02:12]} axb4 {[%emt 0:03:11]} 18. Nbd2 {[%emt 0:00:27]} Be6 {[%emt 0:03:43]} 19. Bxe6 {[%emt 0:02:48]} Nxe6 {[%emt 0:00:06]} 20. Kb1 {[%emt 0:00:09]} O-O-O {[%emt 0:01:26]} 21. Rc1 {[%emt 0:03:57]} Kb7 {[%emt 0:00:36]} 22. Nb3 {[%emt 0:05:18]} Rd5 {[%emt 0:02:55]} 23. Re4 {[%emt 0:02:40]} c5 {[%emt 0:01:31]} 24. a3 {[%emt 0:05:13]} bxa3 {[%emt 0:00:55]} 25. bxa3 {[%emt 0:00:11]} Rhd8 {[%emt 0:01:25]} 26. Kb2 {[%emt 0:10:26]} Kb6 {[%emt 0:01:20]} 27. a4 {[%emt 0:03:02]} Ng5 {[%emt 0:05:23]} 28. Nxg5 {[%emt 0:01:33]} hxg5 {[%emt 0:00:10]} 29. Rce1 {[%emt 0:00:25]} Rxe5 {[%emt 0:01:47]} 30. Rxe5 {[%emt 0:01:18]} Rd5 {[%emt 0:00:09]} 31. Kc3 {[%emt 0:00:30]} Bxe5+ {[%emt 0:05:17]} 32. Kc4 {[%emt 0:00:13]} e6 {[%emt 0:00:26]} 33. a5+ {[%emt 0:01:08]} Kc6 {[%emt 0:00:51]} 34. a6 {[%emt 0:01:35]} Bd4 {[%emt 0:02:57]} 35. Na5+ {[%emt 0:03:01]} Kb6 {[%emt 0:01:10]} 36. a7 {[%emt 0:01:04]} Kxa7 {[%emt 0:00:07]} 37. Nc6+ {[%emt 0:00:33]} Kb6 {[%emt 0:00:21]} 38. Nxd4 {[%emt 0:00:45]} Rxd4+ {[%emt 0:00:51]} 39. Kc3 {[%emt 0:00:11]} Kc6 {[%emt 0:00:20]} 40. Re5 {[%emt 0:00:00]} Rd5 {[%emt 0:00:00]} 41. Re2 {[%emt 0:01:53]} Kd6 {[%emt 0:03:25]} 42. f3 {[%emt 0:03:15]} Rd4 {[%emt 0:01:35]} 43. g3 {[%emt 0:00:24]} Kd5 {[%emt 0:00:21]} 44. Ra2 {[%emt 0:00:43]} Rc4+ {[%emt 0:01:51]} 45. Kd3 {[%emt 0:00:15]} Rb4 {[%emt 0:00:20]} 46. Kc3 {[%emt 0:01:05]} e5 {[%emt 0:01:26]} 47. Ra7 {[%emt 0:01:56]} f5 {[%emt 0:00:25]} 48. Ra6 {[%emt 0:00:13]} g4 {[%emt 0:00:12]} 49. fxg4 {[%emt 0:01:43]} Rxg4 {[%emt 0:00:16]} 50. Kd3 {[%emt 0:02:00]} g5 {[%emt 0:01:16]} 51. Ra8 {[%emt 0:01:50]} Rd4+ {[%emt 0:00:10]} 52. Ke3 {[%emt 0:00:33]} f4+ {[%emt 0:02:01]} 53. gxf4 {[%emt 0:00:07]} gxf4+ $19 {[%emt 0:00:45]} 54. Kf3 {[%emt 0:00:07]} Rd3+ {[%emt 0:00:07]} 55. Kg4 {[%emt 0:00:17]} c4 {[%emt 0:00:46]} 56. h4 {[%emt 0:00:43]} Ke4 {[%emt 0:01:35]} 57. h5 {[%emt 0:01:52]} Rg3+ {[%emt 0:00:07]} 58. Kh4 {[%emt 0:00:05]} c3 {[%emt 0:00:40]} 59. Rc8 {[%emt 0:00:10]} Kd3 {[%emt 0:00:50]} 60. Rd8+ {[%emt 0:00:08]} Ke2 {[%emt 0:00:35]} 61. Rc8 {[%emt 0:00:26]} Kd2 {[%emt 0:00:07]} 62. h6 {[%emt 0:00:51]} Rg1 {[%emt 0:00:19]} 63. Rd8+ {[%emt 0:00:25]} Kc1 {[%emt 0:00:30]} 64. Kh5 {[%emt 0:00:18]} c2 {[%emt 0:00:17]} 65. h7 {[%emt 0:00:15]} Kb2 {[%emt 0:01:46]} 66. Rb8+ {[%emt 0:00:11]} Kc3 {[%emt 0:00:15]} 67. Rc8+ {[%emt 0:00:10]} Kd2 {[%emt 0:00:20]} 68. Rd8+ {[%emt 0:00:17]} Ke3 {[%emt 0:00:18]} 0-1

[Event "Runavik Open 2018"]
[Site "Runavik"]
[Date "2018.11.14"]
[Round "3"]
[White "Fjallheim, Benjamin Reinert"]
[Black "Markensten, Max"]
[Result "0-1"]
[ECO "B27"]
[WhiteElo "1340"]
[BlackElo "1660"]
[Annotator "NA RC"]
[PlyCount "42"]
[EventDate "2018.11.12"]
[EventType "swiss"]
[EventCountry "FAI"]
[SourceTitle "playchess.com"]
[Source "ChessBase"]
[SourceQuality "1"]
[TimeControl "40/5400+30:900+30"]

1. e4 {[%emt 0:00:00]} c5 {[%emt 0:00:00]} 2. Nf3 {[%emt 0:00:00]} g6 {[%emt 0:00:00]} 3. d4 {[%emt 0:00:01]} cxd4 {[%emt 0:00:00]} 4. Nxd4 {[%emt 0:00:16]} Bg7 {[%emt 0:00:05]} 5. Nc3 {[%emt 0:00:33]} Nc6 {[%emt 0:00:12]} 6. Be3 {[%emt 0:01:01]} Nf6 {[%emt 0:00:09]} 7. f3 {[%emt 0:00:29]} O-O {[%emt 0:06:43]} 8. Qd2 {[%emt 0:00:43]} d5 {[%emt 0:01:20]} 9. O-O-O {[%emt 0:01:51]} dxe4 {[%emt 0:02:20]} 10. fxe4 {[%emt 0:08:54]} Nxd4 {[%emt 0:11:47]} 11. Bxd4 {[%emt 0:02:53]} Be6 {[%emt 0:05:59]} 12. Be2 {[%emt 0:03:10]} Qa5 {[%emt 0:04:05]} 13. Kb1 {[%emt 0:01:10]} Nxe4 {[%emt 0:09:18]} 14. Qf4 {[%emt 0:02:14]} Nxc3+ {[%emt 0:00:35]} 15. Bxc3 {[%emt 0:00:55]} Qxa2+ {[%emt 0:02:24]} 16. Kc1 {[%emt 0:00:27]} Bxc3 {[%emt 0:03:16]} 17. bxc3 {[%emt 0:00:27]} Rac8 {[%emt 0:00:46]} 18. Bd3 {[%emt 0:02:29]} Rxc3 {[%emt 0:01:27]} 19. Qb4 {[%emt 0:01:14]} Rfc8 {[%emt 0:02:12]} 20. Qe4 {[%emt 0:01:10]} Bf5 {[%emt 0:02:19]} 21. Qd5 {[%emt 0:02:51]} Rxc2+ {[%emt 0:00:20]} 0-1

[Event "Runavik Open 2018"]
[Site "Runavik"]
[Date "2018.11.14"]
[Round "3"]
[White "Petersen, Elias"]
[Black "Tummasarson, Flovin M."]
[Result "0-1"]
[ECO "C64"]
[WhiteElo "1045"]
[BlackElo "1378"]
[Annotator "NA RC"]
[PlyCount "116"]
[EventDate "2018.11.12"]
[EventType "swiss"]
[EventCountry "FAI"]
[SourceTitle "playchess.com"]
[Source "ChessBase"]
[SourceQuality "1"]
[TimeControl "40/5400+30:900+30"]

1. e4 {[%emt 0:00:00]} e5 {[%emt 0:00:00]} 2. Nf3 {[%emt 0:00:00]} Nc6 {[%emt 0:00:30]} 3. Bb5 {[%emt 0:01:17]} Bc5 {[%emt 0:01:03]} 4. O-O {[%emt 0:00:55]} Nd4 {[%emt 0:00:09]} 5. Nxd4 {[%emt 0:00:38]} Bxd4 {[%emt 0:00:09]} 6. c3 {[%emt 0:00:36]} Bb6 {[%emt 0:00:11]} 7. d4 {[%emt 0:00:40]} c6 {[%emt 0:00:25]} 8. Bc4 {[%emt 0:00:30]} d6 {[%emt 0:02:05]} 9. f4 {[%emt 0:02:29]} Nf6 {[%emt 0:05:19]} 10. fxe5 {[%emt 0:01:07]} dxe5 {[%emt 0:00:13]} 11. Bg5 {[%emt 0:00:59]} exd4 {[%emt 0:00:15]} 12. Kh1 {[%emt 0:01:02]} dxc3 {[%emt 0:00:25]} 13. Qxd8+ {[%emt 0:00:20]} Bxd8 {[%emt 0:00:12]} 14. Nxc3 {[%emt 0:00:27]} O-O {[%emt 0:01:06]} 15. Rad1 {[%emt 0:00:29]} Bg4 {[%emt 0:01:33]} 16. Rd2 {[%emt 0:00:50]} b5 {[%emt 0:00:58]} 17. Bb3 {[%emt 0:01:49]} b4 {[%emt 0:00:12]} 18. Na4 {[%emt 0:00:30]} Nxe4 {[%emt 0:00:19]} 19. Rd4 {[%emt 0:00:48]} Nxg5 {[%emt 0:06:47]} 20. Rxg4 {[%emt 0:00:20]} a5 {[%emt 0:04:32]} 21. Nc5 {[%emt 0:02:47]} Be7 {[%emt 0:15:04]} 22. Nd7 {[%emt 0:01:00]} Rfd8 {[%emt 0:00:56]} 23. Ne5 {[%emt 0:00:36]} Bf6 {[%emt 0:01:10]} 24. Nxf7 {[%emt 0:01:40]} Nxf7 {[%emt 0:00:24]} 25. Rxf6 {[%emt 0:00:20]} Ra7 {[%emt 0:03:10]} 26. h3 {[%emt 0:01:26]} Kf8 {[%emt 0:04:53]} 27. Rxc6 {[%emt 0:00:41]} g6 {[%emt 0:10:30]} 28. Rf4 {[%emt 0:01:40]} Rdd7 {[%emt 0:03:31]} 29. Rcf6 {[%emt 0:02:15]} Kg7 {[%emt 0:01:20]} 30. h4 {[%emt 0:01:10]} Nh6 {[%emt 0:01:56]} 31. h5 {[%emt 0:02:08]} Nf5 {[%emt 0:00:30]} 32. Rb6 {[%emt 0:00:52]} Ng3+ {[%emt 0:00:26]} 33. Kh2 {[%emt 0:00:29]} Nxh5 {[%emt 0:00:17]} 34. Rf3 {[%emt 0:00:37]} Rdb7 {[%emt 0:08:51]} 35. Rd6 {[%emt 0:01:38]} Rd7 {[%emt 0:02:21]} 36. Rb6 {[%emt 0:00:19]} Rd2 {[%emt 0:02:10]} 37. Rb8 {[%emt 0:00:48]} Rxb2 {[%emt 0:05:01]} 38. Rg8+ {[%emt 0:00:53]} Kh6 {[%emt 0:00:06]} 39. Rh8 {[%emt 0:00:39]} a4 {[%emt 0:02:01]} 40. Bc4 {[%emt 0:00:00]} Rb7 {[%emt 0:00:00]} 41. Rd3 {[%emt 0:04:54]} Nf4 {[%emt 0:05:55]} 42. Rg3 {[%emt 0:00:20]} Rc2 {[%emt 0:01:52]} 43. Bg8 {[%emt 0:01:43]} Nh5 {[%emt 0:05:48]} 44. Rf3 {[%emt 0:01:36]} Rbc7 {[%emt 0:01:01]} 45. Kh3 {[%emt 0:01:14]} Kg7 {[%emt 0:01:09]} 46. Rxh7+ {[%emt 0:00:17]} Kxg8 {[%emt 0:00:10]} 47. Rxc7 {[%emt 0:00:47]} Rxc7 {[%emt 0:00:05]} 48. g4 {[%emt 0:00:19]} Rc3 {[%emt 0:00:18]} 49. Rxc3 {[%emt 0:00:13]} bxc3 {[%emt 0:00:05]} 50. gxh5 {[%emt 0:00:09]} gxh5 {[%emt 0:00:18]} 51. Kh4 {[%emt 0:00:05]} c2 {[%emt 0:00:08]} 52. Kxh5 {[%emt 0:00:02]} c1=Q {[%emt 0:00:17]} 53. Kh4 {[%emt 0:00:13]} Qg1 {[%emt 0:00:10]} 54. a3 {[%emt 0:00:04]} Kf7 {[%emt 0:00:07]} 55. Kh3 {[%emt 0:00:14]} Kf6 {[%emt 0:00:16]} 56. Kh4 {[%emt 0:00:06]} Kf5 {[%emt 0:00:11]} 57. Kh3 {[%emt 0:00:10]} Kf4 {[%emt 0:00:07]} 58. Kh4 {[%emt 0:00:07]} Qh1# {[%emt 0:00:09]} 0-1

[Event "Runavik Open 2018"]
[Site "Runavik"]
[Date "2018.11.14"]
[Round "4"]
[White "Olsen, Kaj"]
[Black "Pinheiro Diamant, Jonatan"]
[Result "1/2-1/2"]
[ECO "C88"]
[WhiteElo "1718"]
[BlackElo "1789"]
[Annotator "NA RC"]
[PlyCount "74"]
[EventDate "2018.11.12"]
[EventType "swiss"]
[EventCountry "FAI"]
[SourceTitle "playchess.com"]
[Source "ChessBase"]
[SourceQuality "1"]
[TimeControl "40/5400+30:900+30"]

1. e4 e5 2. Nf3 Nc6 3. Bb5 a6 4. Ba4 Nf6 5. O-O Be7 6. Re1 b5 7. Bb3 d6 8. h3 Na5 9. c3 Nxb3 10. axb3 O-O 11. d4 exd4 12. Nxd4 Bd7 13. Nd2 Re8 14. Nf1 Bf8 15. Ng3 g6 16. Qd3 c5 17. Nf3 Bc6 18. Bf4 Ra7 19. c4 Qe7 20. e5 Bxf3 21. Qxf3 dxe5 22. Rxe5 Qd7 23. Rxe8 Qxe8 24. Qd3 Rd7 25. Qc3 Rd4 26. Be3 Ne4 27. Nxe4 Rxe4 28. Rxa6 b4 29. Qd2 Qc8 30. Ra5 Qc7 31. Rb5 Bd6 32. Kf1 Re5 33. Bf4 Re6 34. Bxd6 Rxd6 35. Qe2 Re6 36. Qd2 Rd6 37. Qe2 Re6 1/2-1/2

[Event "Runavik Open 2018"]
[Site "Runavik"]
[Date "2018.11.14"]
[Round "4"]
[White "Markensten, Max"]
[Black "Tummasarson, Flovin M."]
[Result "1-0"]
[ECO "D35"]
[WhiteElo "1660"]
[BlackElo "1378"]
[Annotator "NA RC"]
[PlyCount "59"]
[EventDate "2018.11.12"]
[EventType "swiss"]
[EventCountry "FAI"]
[SourceTitle "playchess.com"]
[Source "ChessBase"]
[SourceQuality "1"]
[TimeControl "40/5400+30:900+30"]

1. d4 d5 2. c4 e6 3. Nc3 Nf6 4. cxd5 exd5 5. Bg5 Nbd7 6. e3 c6 7. Bd3 Be7 8. Nge2 O-O 9. O-O b6 10. Qc2 Bb7 11. a3 c5 12. dxc5 bxc5 13. Rfd1 h6 14. Bh4 Re8 15. Rac1 Qc7 16. Bg3 Bd6 17. Nb5 Qc6 18. Nxd6 Re6 19. Nxb7 Qxb7 20. Nf4 Rb6 21. Qc3 c4 22. Be2 Rxb2 23. Bf3 Rb3 24. Nxd5 Rxc3 25. Nxf6+ Nxf6 26. Bxb7 Rxc1 27. Rxc1 Rd8 28. a4 c3 29. Ba6 Rd7 30. Rxc3 1-0